Cogmind - Beta 14 @@@ ROGUE MODE // 2024.08.14 @ 03:17:35 Player: Millea Result: Destroyed by 46-PUZ(R) with Subdweller Machine Gun Performance ------------- Evolutions (0) 0 Regions Visited (2) 400 Robots Destroyed (33) 165 Value Destroyed (724) 724 Prototype IDs (0) 0 Alien Tech Used (0) 0 Bonus (0) 0 TOTAL SCORE: 1289 Bonus ------- None Cogmind --------- Core Integrity 0/250 Matter 284/300 Energy 84/100 System Corruption 0% Temperature Cool (0) Movement Core (50) Location -10/Subcaves Parts ------- > --- POWER (1) -------- (None) > --- PROPULSION (2) --- (None) > --- UTILITY (2) ------ (None) > --- WEAPON (2) ------- (None) > --- INVENTORY (5) ---- Subdweller Monowheel Heat Sink Mining Laser Peak State ------------ > --- POWER ------------ Subdweller Power Source > --- PROPULSION ------- Light Treads Light Treads > --- UTILITY ---------- Large Storage Unit Structural Scanner > --- WEAPON ----------- Heavy Riot Gun Barrage Gun > --- INVENTORY -------- Light Treads Light Treads Spiked Treads Compact Wheel Compact Wheel Heat Sink Heat Sink Small Storage Unit Medium Storage Unit Medium Laser Assault Rifle Mining Laser [Rating: 14] Favorites ----------- Power Ion Engine Engine Ion Engine Propulsion Light Treads Treads Light Treads Utility Large Storage Unit Device Heat Sink Storage Large Storage Unit Protection Scrap Shield Weapon Medium Laser Energy Gun Medium Laser Ballistic Gun Assault Rifle Special Weapon Mining Laser Build | -11 -10 -10 ------- Run | Yrd Mat Sub Slots Evolved . | . . . Power . | . . . Propulsion . | . . . Utility . | . . . Weapon . | . . . Parts Attached 31 | 6 8 17 Power 3 | 1 1 1 Engine 3 | 1 1 1 Core . | . . . Reactor . | . . . Propulsion 7 | 2 2 3 Treads 7 | 2 2 3 Leg . | . . . Wheel . | . . . Hover . | . . . Flight . | . . . Utility 8 | 1 4 3 Device 2 | . 2 . Storage 5 | 1 2 2 Processor . | . . . Hackware . | . . . Protection 1 | . . 1 Artifact . | . . . Weapon 13 | 2 1 10 Energy Gun 7 | 1 . 6 Energy Cannon . | . . . Ballistic Gun 4 | 1 . 3 Ballistic Cannon . | . . . Launcher . | . . . Special Weapon 2 | . 1 1 Impact Weapon . | . . . Slashing Weapon . | . . . Piercing Weapon . | . . . Special Melee Weapon . | . . . Unidentified Prototypes . | . . . Parts Lost 9 | . 2 7 Power 3 | . 2 1 Propulsion 3 | . . 3 Utility 1 | . . 1 Weapon 2 | . . 2 Highest Loss Streak 4 | . 1 4 To Critical Strikes . | . . . Average Slot Usage (%) 89 | . 96 81 Engine 9 | . 11 6 Treads 27 | . 28 26 Device 10 | . 13 5 Storage 10 | . 14 6 Protection 2 | . . 6 Energy Gun 16 | . 13 19 Ballistic Gun 11 | . 14 7 Peak Build Rating 14 | 6 7 14 Average Rating 8 | 4 6 10 On Entrance 4 | . 6 7 Naked Turns 14 | . . 14 Heaviest Build 33 | 14 30 33 Greatest Support 40 | 40 40 40 Greatest Overweight (x) 1 | . . 1 Average Overweight (x) . | . . . Largest Inventory Capacity 15 | 8 15 15 Average Capacity 10 | 7 12 9 Most Carried 12 | 4 10 12 Average Carried 5 | 2 5 7 Final Capacity 15 | 8 15 5 Final Carried 10 | 4 10 3 Class Distribution -------------------- 84% | Mutant 15% | Subdweller-Mutant Dominant Class ---------------- Mutant | -10/Materials Mutant | -10/Subcaves Resources | -11 -10 -10 ----------- Run | Yrd Mat Sub Matter Collected 754 | 211 270 273 Remotely . | . . . Salvage Created 922 | . 575 347 Parts 76 | . 46 30 Haulers Intercepted 2 | . 2 . Recyclers Shooed . | . . . Parts Field Recycled . | . . . Retrieved Matter . | . . . Parts Self-Destructed 11 | . . 11 Prevented . | . . . Kills | -11 -10 -10 ------- Run | Yrd Mat Sub Combat Hostiles Destroyed 27 | . 15 12 Guns 27 | . 15 12 Classes Destroyed 6 | . 5 1 Builder 1 | . 1 . Hauler 2 | . 2 . Watcher 3 | . 3 . Swarmer 13 | . 9 4 Grunt 6 | . 6 . Subdweller 8 | . . 8 Best Kill Streak 6 | . 6 4 Combat Bots Only 4 | . 4 4 Max Kills in Single Turn 1 | . 1 1 Gunslinging . | . . . Exploded . | . . . Melee . | . . . Uniques/NPCs Destroyed . | . . . Combat | -11 -10 -10 -------- Run | Yrd Mat Sub Hostile Shots Fired 177 | . 77 100 Missed 53 | . 23 30 Damage Taken 1526 | . 568 958 Core 257 | . 51 206 Absorbed by Shields . | . . . Core Remaining (%) 100 | 100 . . Volleys Fired 97 | . 57 40 Largest 2 | . 2 2 Hottest 120 | . 100 120 Shots Fired 184 | . 110 74 Gun 179 | . 106 73 Cannon . | . . . Launcher . | . . . Special 5 | . 4 1 Kinetic 93 | . 53 40 Thermal 87 | . 57 30 Explosive . | . . . Electromagnetic 4 | . . 4 Robot Hit Streak 9 | . 8 9 Robot Miss Streak 7 | . 7 2 Penetration Max . | . . . Secondary Targets 5 | . 2 3 Max Gunslinging Chain 1 | . 1 1 Shots Hit Robots 112 | . 57 55 Core Hits 49 | . 28 21 Critical Kills . | . . . Critical Parts Destroyed . | . . . Critical Strikes 3 | . 3 . Burn 3 | . 3 . Melee Attacks . | . . . Impact . | . . . Slashing . | . . . Piercing . | . . . Sneak Attacks . | . . . Combat Hostiles . | . . . Follow-up Attacks . | . . . Damage Inflicted 1689 | . 757 932 Guns 1663 | . 731 932 Cannons . | . . . Explosions . | . . . Melee . | . . . Ramming 2 | . 2 . Kinetic 833 | . 367 466 Thermal 796 | . 388 408 Explosive . | . . . Electromagnetic 58 | . . 58 Impact . | . . . Slashing . | . . . Piercing . | . . . Highest Corruption . | . . . Average Corruption . | . . . Corruption Purged . | . . . Corruption Blocked . | . . . Overload Shots . | . . . Overflow Damage . | . . . Projectiles . | . . . Explosions . | . . . Melee . | . . . Knockbacks . | . . . Impact . | . . . Kinetic . | . . . Secondary . | . . . Self-Inflicted Damage . | . . . Shots . | . . . Rammed 1 | . 1 . Targets Rammed 1 | . 1 . Kicked . | . . . Crushed . | . . . Highest Temperature 9 | . 9 5 Average Temperature 3 | . 4 2 Received Heat Transfer 435 | . 180 255 Siege Activations . | . . . Robots Corrupted . | . . . Combat Hostiles . | . . . Parts Fried . | . . . Impact Corruptions . | . . . Robots Melted . | . . . Combat Hostiles . | . . . Parts Melted 7 | . 3 4 Heat Transferred 1967 | . 1345 622 Parts Sabotaged . | . . . Parts Stolen . | . . . Parts Stripped . | . . . Power Chain Reactions . | . . . Alert | -11 -10 -10 ------- Run | Yrd Mat Sub Peak Influence 247 | . 247 . Initial . | . . . Average 116 | . 124 . Maximum Alert Level 1 | . 1 . Low Security (%) 76 | 100 75 . Level 1 23 | . 24 . Level 2 . | . . . Level 3 . | . . . Level 4 . | . . . Level 5 . | . . . High Security . | . . . Max Security . | . . . Squads Dispatched 3 | . 3 . Investigation 1 | . 1 . Extermination . | . . . Reinforcement 2 | . 2 . Assault . | . . . Garrison . | . . . Intercept . | . . . Searches Triggered . | . . . Construction Impeded . | . . . Haulers Reinforced . | . . . Active Scanning Responses . | . . . Cargo Convoy Interrupts . | . . . Stealth | -11 -10 -10 --------- Run | Yrd Mat Sub Distress Signals 1 | . 1 . Communications Jammed . | . . . Distress Signals . | . . . Times Spotted 44 | . 26 18 Peak Tracking Total 6 | . 4 6 Tactical Retreats 3 | . 1 2 Traps | -11 -10 -10 ------- Run | Yrd Mat Sub Traps Triggered 2 | . 2 . Indirectly . | . . . Trap Hack Attempts . | . . . Triggered . | . . . Disarmed . | . . . Reprogrammed . | . . . Reused . | . . . Traps Extracted . | . . . Installed . | . . . Triggered . | . . . Machines | -11 -10 -10 ---------- Run | Yrd Mat Sub Machines Disabled . | . . . Max in Single Turn . | . . . Machines Repaired . | . . . Machines Dismantled . | . . . Machines Sabotaged . | . . . Overloaded Fab Kills . | . . . Hacking | -11 -10 -10 --------- Run | Yrd Mat Sub Machines Accessed . | . . . Terminals . | . . . Fabricators . | . . . Repair Stations . | . . . Recycling Units . | . . . Scanalyzers . | . . . Garrison Access . | . . . Total Hacks . | . . . Successful . | . . . Failed . | . . . Catastrophic . | . . . Database Lockouts . | . . . Manual . | . . . Terminals . | . . . Fabricators . | . . . Repair Stations . | . . . Recycling Units . | . . . Scanalyzers . | . . . Garrison Access . | . . . Terminal Hacks . | . . . Fabricator Hacks . | . . . Repair Station Hacks . | . . . Recycling Unit Hacks . | . . . Scanalyzer . | . . . Garrison Access Hacks . | . . . Unauthorized Hacks . | . . . Terminals . | . . . Fabricators . | . . . Repair Stations . | . . . Recycling Units . | . . . Scanalyzers . | . . . Garrison Access . | . . . Data Cores Recovered . | . . . Used . | . . . Hacking Detections . | . . . Full Trace Events . | . . . Feedback Events . | . . . Feedback Blocked . | . . . Robot Schematics Acquired . | . . . Robots Built . | . . . Authchips . | . . . Time . | . . . Total Robot Build Rating . | . . . Part Schematics Acquired . | . . . Parts Built . | . . . Authchips . | . . . Time . | . . . Total Part Build Rating . | . . . Parts Repaired . | . . . Time . | . . . Parts Recycled . | . . . Recycled Matter . | . . . Retrieved Matter . | . . . Retrieved Components . | . . . Parts Scanalyzed . | . . . Part Schematics Acquired . | . . . Parts Damaged . | . . . Bothacking | -11 -10 -10 ------------ Run | Yrd Mat Sub Used RIF Installer . | . . . Robots Hacked . | . . . Non-combat . | . . . Combat . | . . . Robot Hacks Applied . | . . . Relay Couplers Released . | . . . Fabnet Peak Effective % . | . . . Robots Rewired . | . . . Allies Hacked . | . . . Hacks Repelled . | . . . Allies | -11 -10 -10 -------- Run | Yrd Mat Sub Total Allies . | . . . Largest Group . | . . . Highest-Rated Group . | . . . Highest-Rated Ally . | . . . Total Orders . | . . . Ally Attacks . | . . . Total Damage . | . . . Kills . | . . . Allies Corrupted . | . . . Allies Melted . | . . . Intel | -11 -10 -10 ------- Run | Yrd Mat Sub Robot Analysis Total . | . . . Derelict Logs Recovered . | . . . Drone Launches . | . . . Drone Recoveries . | . . . Exploration | -11 -10 -10 ------------- Run | Yrd Mat Sub Turns Passed 1837 | 75 1010 752 Spaces Moved 904 | 45 483 376 Core 35 | 8 . 27 Treads 869 | 37 483 349 Legs . | . . . Wheels . | . . . Hover . | . . . Flight . | . . . Fastest Speed 50 | 50 160 50 Average Speed 157 | 140 160 155 Slowest Speed 240 | 160 160 240 Overloaded Moves . | . . . Propulsion Burnouts . | . . . Robots Hopped . | . . . Cave-ins Triggered . | . . . Exploration Rate (%) 34 | 4 69 29 Regions Visited 2 Branch Regions 1 Pre-discovered Areas . | . . . Known Exits Taken . | . . . Unknown Exits Taken 2 | 1 1 . Scrap Searched 6 | . . 6 Spaces Dug . | . . . Terrain Destroyed . | . . . Melee . | . . . Projectile . | . . . AOE . | . . . Terrain Rammed . | . . . Walls Destroyed . | . . . Machines Disabled . | . . . Actions | -11 -10 -10 --------- Run | Yrd Mat Sub Total 1120 | 54 598 468 Wait 70 | . 47 23 Move 902 | 44 482 376 Hop . | . . . Pick Up 9 | 4 3 2 Fast Attach 13 | 6 1 6 Attach 6 | . 1 5 Detach . | . . . Swap 12 | . 6 6 Drop 8 | . . 8 Fire 97 | . 57 40 Melee . | . . . Ram . | . . . Kick . | . . . Crush 1 | . 1 . Escape Stasis . | . . . Rewire . | . . . Trap . | . . . Miscellaneous 2 | . . 2 Route ------- -11/Scrapyard -10/Materials (discovered 5 exits: [*Mat x2] / [*Min x2] / [*Sub]) -10/Subcaves History --------- Turn | Location | Event 53 | -11/Scrapyard | Discovered new exit (range 15) 76 | -11/Scrapyard | Entered Materials 275 | -10/Materials | Discovered new exit (range 11) 313 | -10/Materials | Build established: Mutant 626 | -10/Materials | Discovered new exit (range 16) 803 | -10/Materials | Discovered new exit (range 15) 813 | -10/Materials | Discovered new exit (range 10) 879 | -10/Materials | Discovered new exit (range 11) 1086 | -10/Materials | Entered Subcaves 1187 | -10/Subcaves | Disturbed a concealed Subdweller 1235 | -10/Subcaves | Shifting Twisted Machinery released Battle Cannon 1240 | -10/Subcaves | Shifting Twisted Machinery released Barrage Gun 1353 | -10/Subcaves | Core integrity fell below 50% 1385 | -10/Subcaves | Lost 4 parts (2n2w) 1668 | -10/Subcaves | Core integrity fell below 20% 1824 | -10/Subcaves | Released all parts (5) 1838 | -10/Subcaves | Disturbed a concealed Subdweller 1838 | -10/Subcaves | Destroyed by 46-PUZ(R) with Subdweller Machine Gun Last Messages --------------- 01687_ Lgt. Assault Rifle fries itself beyond repair. 01740_ Scrap Shield destroyed. 01805_ Sub. Laser melted. 01805_ T0-O2X(R) destroyed. 01824_ Lgt. Treads destroyed. 01824_ Released Sub. Laser. 01824_ Released Spk. Treads. 01824_ Released Sml. Storage Unit. 01824_ Released Med. Storage Unit. 01824_ Released Sub. Laser. 01833_ Searching scrap... 01833_ Found Sub. Laser. 01833_ Found 65 Matter. 01834_ Acquired 65 matter. 01834_ Searching scrap... 01834_ Found Mak. Shrapnel Gun. 01834_ Found 46 Matter. 01838_ 46-PUZ(R) angrily emerges from the Twisted Machinery. Map ----- +----------------------------------------------------+ | ????????????????## ##?????????????????## | | ????????????????## ##?????????????????## | | ????????????????## ##???????????????#### | | ????????????????## ###???????????????## | | ????????????????### ####???????????????## | | ????????????????### ###????????????????### | | ??????????????????? #?????????????????#### | | ??????????????????? ?????????????????????? | | ??????????????????# ?????????????????????? | | ??????????????????## ???????????????????????# | | ??????????????????###???????????????????????# | | ????????????????????????????????????????????# | | ????????????????????????????????????????????# | | ????????????????????????????????????????????? | | ????????????????????????????????????????????? | | ????????????????????????????????????????????? | | ????????????????????????????????????????????? | | ????????????????????????????????????????????? | | ????????????????????????????????????????????? | | ????????????????????????????????????????????? | | ????????????????#######?????????????????????? | | ????????????????#"[ <#?????????????????????? | | ????????????????#%[##R#?????????????????????? | | ????????????????#### #?????????????????????? | | ????????????????#?#< ##?????????????????????? | | ????????????????# ##@##?????????????????????? | | ????????????????# < <#?????????????????????? | | ????????????????# ####????????????????### | | ????????????????# #???????????###?## | | ??????????????### #??########## #?# | | ??????????????# #### ## #?# | | ??????????????## ## ! ### | | ???????????????# =[!## ## | | ???????????????## [ ## | | ????????????????# #### ### | | ???????????????# #??# #?# | | ???????????????##### ### #?# #### # | | ???????????????????## ### ##?### | | ??????????????????# # ##??? | | ??????????????? ##?? | | ??????????????? ##? | | ???????????????? ## # ## | | ??????????????????######### | | ??????????????????????????# ## | | ????????????????????????? #?## # | | ??????????????????????? ??# ## ## | | ??????????????????????## ??## ########## | | ???????????????????????## ????# ???##???## | | ???????????????????????? ?????# ?### ##### | | ???????????????????????# ????? &#?# | +----------------------------------------------------+ Best States ------------- Heat Dissipation 35 Energy Generation 15 Energy Capacity 250 Matter Stores 300 Matter Capacity 300 Sight Range 16 Terrain Scan Density 10 Armor Coverage 800 Evasion (%) 50 Recoil Reduction 2 Item Schematics ----------------- None Robot Schematics ------------------ None Fabricated ------------ Nothing Alien Tech Used ----------------- None Achievements -------------- None Challenges ------------ None Game ------ Seed GammaGatlingThruster Manual? 0 Play Time 00:14:03 Cumulative 370.0 hours Start 2024.08.14 @ 03:04:15 End 2024.08.14 @ 03:17:35 Sessions 1 Manual Loads 0 Difficulty Rogue Special Mode None Game No. 268 Rogue 268 Adventurer 0 Explorer 0 Win Type - Total 15 Types 9/0/4/1/0/0/0/1/0 Lore% 54 Gallery% 82 Achievement% 77 Wizard Run 0 Options --------- Layout 2 ASCII 1 Keyboard 0 Movement Mouse Keybinds 0 Fullscreen 2 Font 24/Smallcaps Map View 50x44 Zoom Use 0% Tactical HUD 1 Map Filters NONE Filters NONE Steam 1 RUN: aceacd01-c844-44a5-a07b-c8f19350ebf4